Cogmind - Beta 17 @@@ ROGUE MODE // 2026.06.23 @ 14:14:32 Player: Konrad Result: Destroyed by G-34 Mercenary with Small Laser Performance ------------- Evolutions (0) 0 Regions Visited (1) 200 Robots Destroyed (23) 115 Value Destroyed (563) 563 Prototype IDs (0) 0 Alien Tech Used (0) 0 Bonus (0) 0 TOTAL SCORE: 878 Bonus ------- None Cogmind --------- Core Integrity 0/250 Matter 419/450 Energy 237/250 System Corruption 1% Temperature Warm (110) Movement Treading (320) Ox2 Location -10/Materials Parts ------- > --- POWER (1) -------- Ion Engine > --- PROPULSION (2) --- Light Treads Light Treads > --- UTILITY (2) ------ Huge Storage Unit Large Matter Pod > --- WEAPON (2) ------- Beam Cannon Light Assault Rifle > --- INVENTORY (25) --- Light Treads Heat Sink Weight Redist. System Signal Interpreter Seismic Detector Targeting Computer Targeting Computer Light Armor Plating Light Armor Plating Mining Laser Mining Laser Peak State ------------ > --- POWER ------------ Ion Engine > --- PROPULSION ------- Light Treads Light Treads > --- UTILITY ---------- Medium Storage Unit Large Matter Pod > --- WEAPON ----------- Light Assault Rifle Mining Laser > --- INVENTORY -------- Light Treads Light Treads Heat Sink Large Matter Pod Seismic Detector Targeting Computer Small Laser Light Assault Rifle Light Assault Rifle Mining Laser [Rating: 8] Favorites ----------- Power Ion Engine Engine Ion Engine Propulsion Light Treads Treads Light Treads Leg Aluminum Leg Wheel Wheel Flight Unit Flight Unit Utility Large Matter Pod Storage Large Matter Pod Weapon Light Assault Rifle Energy Gun Medium Laser Energy Cannon Beam Cannon Ballistic Gun Light Assault Rifle Special Weapon Mining Laser Build | -11 -10 ------- Run | Yrd Mat Slots Evolved . | . . Power . | . . Propulsion . | . . Utility . | . . Weapon . | . . Parts Attached 31 | 7 24 Power 5 | 1 4 Engine 5 | 1 4 Core . | . . Reactor . | . . Propulsion 11 | 4 7 Treads 4 | . 4 Leg 3 | 2 1 Wheel 2 | 2 . Hover . | . . Flight 2 | . 2 Utility 4 | . 4 Device . | . . Storage 4 | . 4 Processor . | . . Hackware . | . . Protection . | . . Artifact . | . . Weapon 11 | 2 9 Energy Gun 3 | 2 1 Energy Cannon 1 | . 1 Ballistic Gun 5 | . 5 Ballistic Cannon . | . . Launcher . | . . Special Weapon 2 | . 2 Impact Weapon . | . . Slashing Weapon . | . . Piercing Weapon . | . . Special Melee Weapon . | . . Unidentified Prototypes . | . . Parts Lost 5 | . 5 Power 2 | . 2 Propulsion 1 | . 1 Utility . | . . Weapon 2 | . 2 Highest Loss Streak 1 | . 1 To Critical Strikes . | . . Average Backups 8 | 2 8 Power . | . . Propulsion 1 | 1 1 Utility 4 | . 4 Weapon 2 | . 2 Tool/Special . | . . Unused Backups 13 | . 13 Power 1 | . 1 Propulsion 2 | . 2 Utility 9 | . 9 Weapon 1 | . 1 Tool/Special . | . . Average Slot Usage (%) 98 | . 98 Engine 13 | . 13 Treads 24 | . 24 Leg 3 | . 3 Storage 27 | . 27 Energy Gun 5 | . 5 Ballistic Gun 20 | . 20 Special Weapon 1 | . 1 Peak Build Rating 8 | 5 8 Average Rating 7 | 3 7 On Entrance 2 | . 5 Avg Prop Armor Cover (%) . | . . Naked Turns . | . . Heaviest Build 90 | 6 90 Greatest Support 40 | 20 40 Greatest Overweight (x) 4 | . 4 Average Overweight (x) . | . . Largest Inventory Capacity 25 | 5 25 Average Capacity 16 | 5 17 Most Carried 14 | 5 14 Average Carried 8 | 2 8 Final Capacity 25 | 5 25 Final Carried 11 | 3 11 Class Distribution -------------------- 100% | Mutant Dominant Class ---------------- Mutant | -10/Materials Resources | -11 -10 ----------- Run | Yrd Mat Matter Collected 937 | 270 667 Remotely . | . . Salvage Created 703 | 55 648 Parts 39 | 2 37 Haulers Intercepted 1 | . 1 Recyclers Shooed . | . . Parts Field Recycled . | . . Retrieved Matter . | . . Parts Self-Destructed . | . . Prevented . | . . Parts Restored . | . . Kills | -11 -10 ------- Run | Yrd Mat Combat Hostiles Destroyed 19 | 1 18 Melee 1 | . 1 Guns 17 | 1 16 Cannons 1 | . 1 Classes Destroyed 5 | 2 3 Worker 1 | 1 . Hauler 1 | . 1 Watcher 2 | . 2 Swarmer 6 | . 6 Grunt 13 | 1 12 Best Kill Streak 3 | 2 3 Combat Bots Only 3 | 1 3 Max Kills in Single Turn 1 | 1 1 Gunslinging . | . . Exploded . | . . Melee 1 | . 1 Uniques/NPCs Destroyed . | . . Combat | -11 -10 -------- Run | Yrd Mat Hostile Shots Fired 178 | 4 174 Missed 41 | . 41 Hits 137 | 4 133 Projectile 137 | 4 133 Critical Strikes 2 | . 2 Damage Taken 1471 | 45 1426 Core 250 | . 250 Absorbed by Shields . | . . Core Remaining (%) 100 | 100 . Volleys Fired 121 | 8 113 Largest 2 | 2 2 Hottest 200 | 90 200 Shots Fired 233 | 16 217 Gun 220 | 16 204 Cannon 5 | . 5 Launcher . | . . Special 8 | . 8 Kinetic 162 | . 162 Thermal 71 | 16 55 Explosive . | . . Electromagnetic . | . . Robot Hit Streak 8 | 6 8 Robot Miss Streak 7 | 3 7 Penetration Max . | . . Secondary Targets 1 | . 1 Max Gunslinging Chain 1 | . 1 Shots Hit Robots 132 | 9 123 Core Hits 45 | 3 42 Critical Kills 1 | . 1 Critical Parts Destroyed . | . . Critical Strikes 2 | 1 1 Burn 1 | 1 . Destroy 1 | . 1 Melee Attacks . | . . Impact . | . . Slashing . | . . Piercing . | . . Sneak Attacks . | . . Combat Hostiles . | . . Follow-up Attacks . | . . Damage Inflicted 1255 | 107 1148 Guns 1177 | 107 1070 Cannons 70 | . 70 Explosions . | . . Melee . | . . Ramming 8 | . 8 Kinetic 805 | . 805 Thermal 442 | 107 335 Explosive . | . . Electromagnetic . | . . Impact . | . . Slashing . | . . Piercing . | . . Highest Corruption 1 | . 1 Average Corruption 1 | . 1 Corruption Purged . | . . Corruption Blocked . | . . Effects 1 | . 1 Data Loss (major) 1 | . 1 Overload Shots . | . . Overflow Damage . | . . Projectiles . | . . Explosions . | . . Melee . | . . Knockbacks . | . . Impact . | . . Kinetic . | . . Secondary . | . . Self-Inflicted Damage . | . . Shots . | . . Rammed 5 | . 5 Targets Rammed 6 | . 6 Kicked . | . . Crushed 1 | . 1 Highest Temperature 230 | 114 230 Average Temperature 75 | 51 79 Received Heat Transfer 660 | 24 636 Siege Activations . | . . Martial Activations . | . . Shielding Activations . | . . Robots Disrupted . | . . Combat Hostiles . | . . Robots Corrupted . | . . Combat Hostiles . | . . Parts Fried . | . . Impact Corruptions . | . . Robots Melted . | . . Combat Hostiles . | . . Parts Melted 5 | 1 4 Heat Transferred 1261 | 359 902 Parts Sabotaged . | . . Parts Stolen . | . . Parts Stripped . | . . Power Chain Reactions . | . . Alert | -11 -10 ------- Run | Yrd Mat Maximum Alert Level . | . . Low Security (%) 100 | 100 100 Level 1 . | . . Level 2 . | . . Level 3 . | . . Level 4 . | . . Level 5 . | . . High Security . | . . Max Security . | . . Peak Influence 102 | 20 102 Initial . | . . Average 18 | 3 19 Influence Increases 540 | 25 515 Destroy 0b10 Robot/C 380 | 20 360 Destroy 0b10 Robot/NC 20 | 5 15 Destroy Leader 96 | . 96 Successful Hack 39 | . 39 Destroy Structure 5 | . 5 Influence Decreases 438 | 25 413 Time Decay 398 | 25 373 Lost Part 40 | . 40 Squads Dispatched 5 | . 5 Investigation 4 | . 4 Extermination . | . . Reinforcement 1 | . 1 Assault . | . . Garrison . | . . Intercept . | . . Searches Triggered . | . . Construction Impeded . | . . Haulers Reinforced . | . . Active Scanning Responses . | . . Cargo Convoy Interrupts . | . . Stealth | -11 -10 --------- Run | Yrd Mat Distress Signals 1 | . 1 Communications Jammed . | . . Distress Signals . | . . Times Spotted 29 | 1 28 Peak Tracking Total 3 | 1 3 Tactical Retreats . | . . Traps | -11 -10 ------- Run | Yrd Mat Traps Triggered 3 | . 3 Indirectly . | . . Trap Hack Attempts . | . . Triggered . | . . Disarmed . | . . Reprogrammed . | . . Reused . | . . Traps Extracted . | . . Installed . | . . Triggered . | . . Machines | -11 -10 ---------- Run | Yrd Mat Machines Disabled . | . . Max in Single Turn . | . . Machines Repaired . | . . Machines Dismantled . | . . Machines Sabotaged . | . . Overloaded Fab Kills . | . . Hacking | -11 -10 --------- Run | Yrd Mat Machines Accessed 6 | . 6 Terminals 3 | . 3 Fabricators . | . . Repair Stations 1 | . 1 Recycling Units 2 | . 2 Scanalyzers . | . . Garrison Access . | . . Total Hacks 26 | . 26 Successful 13 | . 13 Failed 13 | . 13 Catastrophic 2 | . 2 Database Lockouts . | . . Manual . | . . Terminals 10 | . 10 Fabricators . | . . Repair Stations 5 | . 5 Recycling Units 11 | . 11 Scanalyzers . | . . Garrison Access . | . . Terminal Hacks 8 | . 8 Record 5 | . 5 Alert Level 1 | . 1 Dispatch Records 1 | . 1 Hauler Manifests 1 | . 1 Fabricator Hacks . | . . Repair Station Hacks 2 | . 2 Scan Component 2 | . 2 Recycling Unit Hacks 3 | . 3 Recycle Component 1 | . 1 Report Inventory 2 | . 2 Scanalyzer . | . . Garrison Access Hacks . | . . Unauthorized Hacks . | . . Terminals . | . . Fabricators . | . . Repair Stations . | . . Recycling Units . | . . Scanalyzers . | . . Garrison Access . | . . Data Cores Recovered . | . . Used . | . . Hacking Detections 6 | . 6 Full Trace Events 6 | . 6 Feedback Events 1 | . 1 Corruption 1 | . 1 Feedback Blocked . | . . Robot Schematics Acquired . | . . Robots Built . | . . Authchips . | . . Time . | . . Total Robot Build Rating . | . . Part Schematics Acquired . | . . Parts Built . | . . Authchips . | . . Time . | . . Total Part Build Rating . | . . Part Studies Acquired . | . . Parts Repaired . | . . Time . | . . Parts Recycled 1 | . 1 Recycled Matter . | . . Retrieved Matter . | . . Retrieved Components . | . . Parts Scanalyzed . | . . Part Schematics Acquired . | . . Parts Damaged . | . . Bothacking | -11 -10 ------------ Run | Yrd Mat Used RIF Installer . | . . Robots Hacked . | . . Non-combat . | . . Combat . | . . Robot Hacks Applied . | . . Relay Couplers Released . | . . Fabnet Peak Effective % . | . . Robots Rewired . | . . Allies Hacked . | . . Hacks Repelled . | . . Allies | -11 -10 -------- Run | Yrd Mat Total Allies . | . . Largest Group . | . . Highest-Rated Group . | . . Highest-Rated Ally . | . . Total Orders . | . . Ally Attacks . | . . Total Damage . | . . Kills . | . . Allies Corrupted . | . . Allies Melted . | . . Intel | -11 -10 ------- Run | Yrd Mat Active Infowar (turns) . | . . Robot Analysis Total . | . . Derelict Logs Recovered . | . . Drone Launches . | . . Drone Recoveries . | . . Exploration | -11 -10 ------------- Run | Yrd Mat Turns Passed 2356 | 162 2194 Spaces Moved 1007 | 154 853 Core 30 | 30 . Treads 695 | . 695 Legs 174 | 16 158 Wheels 108 | 108 . Hover . | . . Flight . | . . Fastest Speed 50 | 50 120 Average Speed 189 | 78 209 Slowest Speed 480 | 120 480 Overloaded Moves . | . . Propulsion Burnouts . | . . Robots Hopped . | . . Potential Cave-ins . | . . Cave-ins Triggered . | . . Exploration Rate (%) 42 | 6 79 Regions Visited 1 Branch Regions . Pre-discovered Areas . | . . Known Exits Taken . | . . Unknown Exits Taken 1 | 1 . Scrap Searched . | . . Spaces Dug 6 | . 6 Terrain Destroyed 7 | . 7 Melee . | . . Projectile 7 | . 7 AOE . | . . Terrain Rammed . | . . Walls Destroyed . | . . Machines Disabled . | . . Actions | -11 -10 --------- Run | Yrd Mat Total 1236 | 180 1056 Wait . | . . Move 1006 | 153 853 Hop . | . . Pick Up 44 | 10 34 Fast Attach 1 | . 1 Attach 18 | 7 11 Detach 1 | . 1 Swap 17 | . 17 Drop 22 | 2 20 Fire 121 | 8 113 Melee . | . . Ram . | . . Kick . | . . Crush 6 | . 6 Escape Stasis . | . . Rewire . | . . Trap . | . . Miscellaneous . | . . Route ------- -11/Scrapyard -10/Materials (discovered 5 exits: [*Mat x3] / [*Min] / [*Sub]) History --------- Turn | Location | Event 2 | -11/Scrapyard | Met Revision 17 114 | -11/Scrapyard | Discovered new exit (range 8) 163 | -11/Scrapyard | Entered Materials 316 | -10/Materials | Build established: Mutant 679 | -10/Materials | Core integrity fell below 50% 756 | -10/Materials | Discovered new exit (range 3) 769 | -10/Materials | Discovered new exit (range 16) 897 | -10/Materials | Discovered new exit (range 15) 1130 | -10/Materials | Discovered new exit (range 12) 1320 | -10/Materials | Discovered new exit (range 12) 1376 | -10/Materials | Core integrity fell below 20% 2357 | -10/Materials | Destroyed by G-34 Mercenary with Small Laser Last Messages --------------- 02025_ Dropped Lgt. Assault Rifle. 02039_ Acquired Ion Engine. 02041_ Dropped Ion Engine. 02075_ System corrupted: Substantial component data lost. 02135_ K-01 Serf cleans the Recycling Unit. 02223_ S-10 Pest destroyed. 02240_ R-06 Scavenger collects Lgt. Ion Engine. 02244_ K-01 Serf collects debris. 02249_ S-10 Pest destroyed. 02250_ K-01 Serf collects debris. 02251_ R-06 Scavenger collects Flight Unit. 02251_ Acquired 28 matter. 02253_ K-01 Serf cleans the Nuclear Reactor. 02254_ R-06 Scavenger collects Lgt. Assault Rifle. 02274_ Acquired Beam Cannon. 02291_ Triggered Alarm Trap. 02291_ An alarm sounds. 02291_ ALERT: Alarm triggered, dispatching investigation squad. 02337_ Lgt. Assault Rifle destroyed. 02345_ G-34 Mercenary destroyed. Map ----- +----------------------------------------------------+ | | | | | | | | | | | | | | | | | | | | | | | | | | | | | | | | | ???????????????????????????????????????? | | ????????????????##########?????????????? | | ????????????????# #?????????????? | | ?????????########""" #?????????????? | | ?????????# #""" #?????????????? | | ?????????# #""" #?????????????? | | ??????#### # #?????????????? | | ??????# #""" #?????????????? | | ??????+ #""" #???????#####?? | | ??????# @#""" #???????# #?? | | ??????# # #???????# < #?? | | ??????# ""T""g%##+#######???????# ! #? | | ???? + """"" *u % ############# #? | | ??????# r #? | | ??????# #? | | ??????######T###### ##+ | | ???????????##?????# ############# | | ??????????????????# #?????????### | | ??????????????????# #?????????? # | | ?????????########## #???????????/ | | ?????????# ## #???????????# | | ?????????# ## ###???####### | | ????????## # ##### | | ????????# # ### | | ????????## + " #?# | | ?????????# # #?# | | ????????## # ##### #?# | | ????????#< ## ####### ##?# | | ????????#### ### # * # #??# | | ???????????######?# # + #??##### | | ?????????########## + # #??????? | | ?????????# """ # # #??????? | | ?????????#^^ ^ "Y" # " " # #??????? | | ?????????# " " # "Y" # ######## | +----------------------------------------------------+ Best States ------------- Heat Dissipation 25 Energy Generation 10 Energy Capacity 250 Matter Stores 450 Matter Capacity 450 Sight Range 16 Terrain Scan Density 10 Evasion (%) 55 Recoil Reduction 2 Item Schematics ----------------- None Robot Schematics ------------------ None Fabricated ------------ Nothing Repaired ---------- Nothing Studied --------- None Alien Tech Used ----------------- None Achievements -------------- Loot Pinata Shopping List Challenges ------------ None Game ------ Seed FocalLinkedThermoblaster Manual? 0 Play Time 00:30:02 Cumulative 2.4 hours Start 2026.06.23 @ 13:37:28 End 2026.06.23 @ 14:14:32 Sessions 1 Manual Loads 0 Difficulty Rogue Special Mode None Game No. 3 Rogue 3 Adventurer 0 Explorer 0 Win Type - Total 0 Types 0/0/0/0/0/0/0/0/0/0 Lore% 1 Gallery% 4 Achievement% 4 Wizard Run 0 Options --------- Layout 1 ASCII 0 Keyboard 0 Movement Mouse Keybinds 0 Fullscreen 1 Font 32/SmallcapsGlow Map View 77x35 Zoom Use 0% Tactical HUD 1 Map Filters NONE Filters NONE Steam 1 RUN: 054e4285-bced-4f3e-a5ca-347b62e50d00